Cogmind - Beta 13 @@@ ROGUE MODE // 2024.04.11 @ 21:06:51 Player: Exceptionally Mediocre Result: Destroyed by MR-8PT(R) with Subdweller Machine Gun Performance ------------- Evolutions (0) 0 Regions Visited (3) 600 Robots Destroyed (37) 185 Value Destroyed (605) 605 Prototype IDs (0) 0 Alien Tech Used (0) 0 Bonus (0) 0 TOTAL SCORE: 1390 Bonus ------- None Cogmind --------- Core Integrity 0/250 Matter 242/300 Energy 97/265 System Corruption 4% Temperature Cool (0) Movement Rolling (107) Ox1 Location -10/Subcaves Parts ------- > --- POWER (1) -------- Improved Ion Engine > --- PROPULSION (2) --- Wheel Subdweller Monowheel > --- UTILITY (2) ------ Large Storage Unit Improved Targeting Computer > --- WEAPON (2) ------- Barrage Gun Battle Cannon > --- INVENTORY (15) --- Subdweller Monowheel Subdweller Optics Improved Targeting Computer Scrap Shield Makeshift System Shield Makeshift System Restoration Module Subdweller Beam Cannon Subdweller Beam Cannon Subdweller Beam Cannon Subdweller Machine Gun Flail Scrap Shield Fragment (48) Scrap Shield Fragment (20) Peak State ------------ > --- POWER ------------ Improved Ion Engine > --- PROPULSION ------- Wheel Subdweller Monowheel > --- UTILITY ---------- Large Storage Unit Improved Targeting Computer > --- WEAPON ----------- Subdweller Beam Cannon Barrage Gun > --- INVENTORY -------- Subdweller Monowheel Subdweller Optics Improved Targeting Computer Scrap Shield Makeshift System Shield Makeshift System Restoration Module Subdweller Beam Cannon Subdweller Beam Cannon Subdweller Machine Gun Battle Cannon Flail Scrap Shield Fragment Scrap Shield Fragment [Rating: 16] Favorites ----------- Power Light Ion Engine Engine Light Ion Engine Propulsion Wheel Wheel Wheel Utility Large Storage Unit Device Sensor Array Storage Large Storage Unit Processor Improved Targeting Computer Protection Light Armor Plating Weapon Grenade Launcher Energy Gun Medium Laser Energy Cannon Subdweller Beam Cannon Ballistic Gun Light Assault Rifle Ballistic Cannon Light Cannon Launcher Grenade Launcher Impact Weapon Flail Build | -11 -10 -10 -10 ------- Run | Yrd Mat Min Sub Slots Evolved . | . . . . Power . | . . . . Propulsion . | . . . . Utility . | . . . . Weapon . | . . . . Parts Attached 44 | 9 7 7 21 Power 6 | 2 . 1 3 Engine 6 | 2 . 1 3 Core . | . . . . Reactor . | . . . . Propulsion 12 | 3 2 2 5 Treads . | . . . . Leg . | . . . . Wheel 12 | 3 2 2 5 Hover . | . . . . Flight . | . . . . Utility 7 | 2 2 1 2 Device 2 | 1 1 . . Storage 2 | 1 1 . . Processor 1 | . . . 1 Hackware . | . . . . Protection 2 | . . 1 1 Artifact . | . . . . Weapon 19 | 2 3 3 11 Energy Gun 3 | 1 . 1 1 Energy Cannon 1 | . . . 1 Ballistic Gun 5 | 1 1 . 3 Ballistic Cannon 2 | . 1 . 1 Launcher 4 | . 1 1 2 Special Weapon . | . . . . Impact Weapon 4 | . . 1 3 Slashing Weapon . | . . . . Piercing Weapon . | . . . . Special Melee Weapon . | . . . . Unidentified Prototypes . | . . . . Parts Lost 12 | . . 1 11 Power 2 | . . . 2 Propulsion 5 | . . 1 4 Utility 2 | . . . 2 Weapon 3 | . . . 3 Highest Loss Streak 8 | . . 1 8 To Critical Strikes . | . . . . Average Slot Usage (%) 99 | . 100 99 97 Engine 13 | . 14 14 13 Wheel 27 | . 28 27 26 Device 5 | . 14 1 . Storage 14 | . 14 14 14 Protection 7 | . . 12 10 Energy Gun 9 | . 14 11 1 Ballistic Gun 5 | . 10 . 5 Ballistic Cannon 1 | . 3 . . Launcher 7 | . . 13 9 Impact Weapon 3 | . . 2 8 Naked Turns . | . . . . Heaviest Build 34 | 14 31 34 34 Greatest Support 30 | 26 20 20 30 Greatest Overweight (x) 3 | 1 1 3 3 Average Overweight (x) . | . . 1 1 Largest Inventory Capacity 15 | 8 15 15 15 Average Capacity 13 | 7 11 15 15 Most Carried 15 | 8 15 15 15 Average Carried 12 | 4 11 14 13 Final Capacity 15 | 8 15 15 15 Final Carried 15 | 8 15 15 14 Class Distribution -------------------- 76% | Mutant 23% | Scavenger-Mutant Dominant Class ---------------- Mutant | -10/Materials Scavenger-Mutant | -10/Mines Mutant | -10/Subcaves Resources | -11 -10 -10 -10 ----------- Run | Yrd Mat Min Sub Matter Collected 896 | 295 213 118 270 Remotely . | . . . . Salvage Created 1055 | 164 608 116 167 Parts 74 | 11 36 14 13 Haulers Intercepted 2 | . 2 . . Recyclers Shooed 4 | . 4 . . Parts Field Recycled . | . . . . Retrieved Matter . | . . . . Parts Self-Destructed 6 | . . . 6 Prevented . | . . . . Kills | -11 -10 -10 -10 ------- Run | Yrd Mat Min Sub Combat Hostiles Destroyed 15 | . 7 3 5 Guns 4 | . 3 . 1 Cannons 3 | . 2 . 1 AOE 8 | . 2 3 3 Classes Destroyed 11 | 2 7 . 2 Worker 4 | . 2 2 . Builder 5 | . 3 2 . Tunneler 3 | 3 . . . Hauler 2 | . 2 . . Recycler 4 | 1 3 . . Operator 2 | . 2 . . Watcher 2 | . 2 . . Swarmer 5 | . 2 3 . Grunt 5 | . 5 . . Artisan 1 | . . . 1 Subdweller 5 | . . . 5 Best Kill Streak 4 | 2 4 3 2 Combat Bots Only 3 | . 2 3 2 Max Kills in Single Turn 2 | 1 1 2 2 Gunslinging . | . . . . Exploded 2 | . 1 2 1 Melee . | . . . . Uniques/NPCs Destroyed . | . . . . Combat | -11 -10 -10 -10 -------- Run | Yrd Mat Min Sub Hostile Shots Fired 103 | . 58 7 38 Missed 39 | . 22 2 15 Damage Taken 1411 | . 435 90 886 Core 251 | . 77 6 168 Absorbed by Shields . | . . . . Core Remaining (%) 100 | 100 . . . Volleys Fired 120 | 5 70 24 21 Largest 2 | 2 2 1 2 Hottest 108 | 70 85 65 108 Shots Fired 196 | 10 132 24 30 Gun 163 | 10 115 21 17 Cannon 21 | . 14 . 7 Launcher 12 | . 3 3 6 Special . | . . . . Kinetic 87 | 5 65 . 17 Thermal 97 | 5 64 21 7 Explosive 12 | . 3 3 6 Electromagnetic . | . . . . Robot Hit Streak 12 | 8 12 3 9 Robot Miss Streak 4 | . 4 4 1 Penetration Max . | . . . . Secondary Targets 2 | . 1 . 1 Max Gunslinging Chain 1 | . 1 . 1 Shots Hit Robots 132 | 8 92 12 20 Core Hits 58 | 5 38 5 10 Critical Kills . | . . . . Critical Parts Destroyed . | . . . . Critical Strikes 11 | 2 9 . . Burn 10 | 2 8 . . Blast 1 | . 1 . . Melee Attacks 13 | . . 2 11 Impact 13 | . . 2 11 Slashing . | . . . . Piercing . | . . . . Sneak Attacks 1 | . . 1 . Combat Hostiles . | . . . . Follow-up Attacks . | . . . . Damage Inflicted 2599 | 93 1351 396 759 Guns 1352 | 93 869 173 217 Cannons 307 | . 205 . 102 Explosions 847 | . 277 130 440 Melee 93 | . . 93 . Ramming . | . . . . Kinetic 708 | 29 462 . 217 Thermal 951 | 64 612 173 102 Explosive 847 | . 277 130 440 Electromagnetic . | . . . . Impact 93 | . . 93 . Slashing . | . . . . Piercing . | . . . . Highest Corruption 4 | . 4 4 4 Average Corruption 3 | . 3 4 4 Corruption Purged . | . . . . Corruption Blocked . | . . . . Effects 43 | . 10 19 14 Message Errors 14 | . 2 6 6 Matter Fused 10 | . 1 7 2 Heat Flow Errors 5 | . 1 2 2 Energy Discharges 5 | . 3 2 . Parts Fused 1 | . . . 1 Data Loss (minor) 6 | . 2 2 2 Data Loss (major) 2 | . 1 . 1 Overload Shots . | . . . . Overflow Damage 121 | . 1 120 . Projectiles . | . . . . Explosions 48 | . 1 47 . Melee 73 | . . 73 . Knockbacks 2 | . 2 . . Impact . | . . . . Kinetic 2 | . 2 . . Secondary . | . . . . Self-Inflicted Damage 113 | . 49 52 12 Shots 6 | . 2 2 2 Rammed . | . . . . Targets Rammed . | . . . . Kicked . | . . . . Crushed . | . . . . Highest Temperature 280 | 60 216 280 166 Average Temperature 63 | 25 58 81 46 Received Heat Transfer 303 | . 189 . 114 Effects 1 | . . 1 . Energy Bleed 1 | . . 1 . Siege Activations . | . . . . Robots Corrupted . | . . . . Combat Hostiles . | . . . . Parts Fried 3 | . . 3 . Impact Corruptions 3 | . . 3 . Robots Melted . | . . . . Combat Hostiles . | . . . . Parts Melted 2 | . 2 . . Heat Transferred 3293 | 333 2405 407 148 Parts Sabotaged . | . . . . Parts Stolen . | . . . . Parts Stripped . | . . . . Power Chain Reactions . | . . . . Alert | -11 -10 -10 -10 ------- Run | Yrd Mat Min Sub Peak Influence 285 | 20 285 176 . Initial 55 | . 13 55 . Average 85 | 8 119 58 . Maximum Alert Level 1 | . 1 . . Low Security (%) 98 | 100 96 100 . Level 1 1 | . 3 . . Level 2 . | . . . . Level 3 . | . . . . Level 4 . | . . . . Level 5 . | . . . . High Security . | . . . . Max Security . | . . . . Squads Dispatched 4 | . 4 . . Investigation 2 | . 2 . . Extermination . | . . . . Reinforcement 2 | . 2 . . Assault . | . . . . Garrison . | . . . . Intercept . | . . . . Searches Triggered . | . . . . Construction Impeded . | . . . . Haulers Reinforced . | . . . . Active Scanning Responses . | . . . . Cargo Convoy Interrupts . | . . . . Stealth | -11 -10 -10 -10 --------- Run | Yrd Mat Min Sub Distress Signals . | . . . . Communications Jammed . | . . . . Distress Signals . | . . . . Times Spotted 36 | . 23 3 10 Peak Tracking Total 3 | . 3 3 3 Tactical Retreats 6 | . 5 . 1 Traps | -11 -10 -10 -10 ------- Run | Yrd Mat Min Sub Traps Triggered 3 | . 3 . . Indirectly . | . . . . Trap Hack Attempts . | . . . . Triggered . | . . . . Disarmed . | . . . . Reprogrammed . | . . . . Reused . | . . . . Traps Extracted . | . . . . Installed . | . . . . Triggered . | . . . . Machines | -11 -10 -10 -10 ---------- Run | Yrd Mat Min Sub Machines Disabled 4 | . 2 2 . Max in Single Turn 2 | . 1 2 . Machines Repaired . | . . . . Machines Dismantled . | . . . . Machines Sabotaged . | . . . . Overloaded Fab Kills . | . . . . Hacking | -11 -10 -10 -10 --------- Run | Yrd Mat Min Sub Machines Accessed 4 | . 4 . . Terminals 3 | . 3 . . Fabricators . | . . . . Repair Stations . | . . . . Recycling Units 1 | . 1 . . Scanalyzers . | . . . . Garrison Access . | . . . . Total Hacks 10 | . 10 . . Successful 5 | . 5 . . Failed 5 | . 5 . . Catastrophic . | . . . . Database Lockouts . | . . . . Manual 9 | . 9 . . Terminals 9 | . 9 . . Fabricators . | . . . . Repair Stations . | . . . . Recycling Units 1 | . 1 . . Scanalyzers . | . . . . Garrison Access . | . . . . Terminal Hacks . | . . . . Fabricator Hacks . | . . . . Repair Station Hacks . | . . . . Recycling Unit Hacks 1 | . 1 . . Retrieve Components 1 | . 1 . . Scanalyzer . | . . . . Garrison Access Hacks . | . . . . Unauthorized Hacks 4 | . 4 . . Terminals 4 | . 4 . . Assimilate 1 | . 1 . . Botnet 3 | . 3 . . Fabricators . | . . . . Repair Stations . | . . . . Recycling Units . | . . . . Scanalyzers . | . . . . Garrison Access . | . . . . Data Cores Recovered . | . . . . Used . | . . . . Hacking Detections 3 | . 3 . . Full Trace Events 2 | . 2 . . Feedback Events . | . . . . Feedback Blocked . | . . . . Robot Schematics Acquired . | . . . . Robots Built . | . . . . Authchips . | . . . . Time . | . . . . Total Robot Build Rating . | . . . . Part Schematics Acquired . | . . . . Parts Built . | . . . . Authchips . | . . . . Time . | . . . . Total Part Build Rating . | . . . . Parts Repaired . | . . . . Time . | . . . . Parts Recycled . | . . . . Recycled Matter . | . . . . Retrieved Matter . | . . . . Retrieved Components 10 | . 10 . . Parts Scanalyzed . | . . . . Part Schematics Acquired . | . . . . Parts Damaged . | . . . . Bothacking | -11 -10 -10 -10 ------------ Run | Yrd Mat Min Sub Used RIF Installer . | . . . . Robots Hacked . | . . . . Non-combat . | . . . . Combat . | . . . . Robot Hacks Applied . | . . . . Relay Couplers Released . | . . . . Fabnet Peak Effective % . | . . . . Robots Rewired . | . . . . Allies Hacked . | . . . . Hacks Repelled . | . . . . Allies | -11 -10 -10 -10 -------- Run | Yrd Mat Min Sub Total Allies . | . . . . Largest Group . | . . . . Highest-Rated Group . | . . . . Highest-Rated Ally . | . . . . Total Orders . | . . . . Ally Attacks . | . . . . Total Damage . | . . . . Kills . | . . . . Allies Corrupted . | . . . . Allies Melted . | . . . . Intel | -11 -10 -10 -10 ------- Run | Yrd Mat Min Sub Robot Analysis Total . | . . . . Derelict Logs Recovered 3 | . . 2 1 Drone Launches . | . . . . Drone Recoveries . | . . . . Exploration | -11 -10 -10 -10 ------------- Run | Yrd Mat Min Sub Turns Passed 2675 | 111 915 833 816 Spaces Moved 2317 | 87 787 792 651 Core 8 | 8 . . . Treads . | . . . . Legs . | . . . . Wheels 2309 | 79 787 792 651 Hover . | . . . . Flight . | . . . . Fastest Speed 50 | 50 80 95 95 Average Speed 95 | 87 87 95 104 Slowest Speed 125 | 100 95 125 125 Overloaded Moves . | . . . . Propulsion Burnouts . | . . . . Robots Hopped . | . . . . Cave-ins Triggered . | . . . . Exploration Rate (%) 48 | 5 61 100 27 Regions Visited 3 Branch Regions 2 Pre-discovered Areas 2 | . . 2 . Known Exits Taken . | . . . . Unknown Exits Taken 3 | 1 1 1 . Scrap Searched 8 | . . 1 7 Spaces Dug 9 | . . 6 3 Terrain Destroyed 65 | . 19 20 26 Melee 4 | . . 1 3 Projectile 1 | . . . 1 AOE 60 | . 19 19 22 Terrain Rammed . | . . . . Walls Destroyed . | . . . . Machines Disabled . | . . . . Actions | -11 -10 -10 -10 --------- Run | Yrd Mat Min Sub Total 2619 | 113 906 850 750 Wait 4 | . . 4 . Move 2314 | 86 786 791 651 Hop . | . . . . Pick Up 73 | 11 24 11 27 Fast Attach 6 | 5 1 . . Attach 15 | 2 . 1 12 Detach . | . . . . Swap 23 | 2 6 6 9 Drop 51 | 2 19 11 19 Fire 120 | 5 70 24 21 Melee 13 | . . 2 11 Ram . | . . . . Kick . | . . . . Crush . | . . . . Escape Stasis . | . . . . Rewire . | . . . . Trap . | . . . . Miscellaneous . | . . . . Route ------- -11/Scrapyard -10/Materials (discovered 2 exits: [*Mat] / [*Min]) -10/Mines (discovered 3 exits: [*Mat x2] / [*Sub]) -10/Subcaves History --------- Turn | Location | Event 9 | -11/Scrapyard | Discovered new exit (range 16) 112 | -11/Scrapyard | Entered Materials 318 | -10/Materials | Build established: Mutant 504 | -10/Materials | Discovered new exit (range 7) 864 | -10/Materials | Discovered new exit (range 11) 1027 | -10/Materials | Entered Mines 1093 | -10/Mines | Joined a pair of Derelicts in attacking an 0b10 outpost 1103 | -10/Mines | Met a Derelict bent on vengeance 1266 | -10/Mines | Learned location of Zion (-7) 1425 | -10/Mines | Discovered new exit (range 10) 1426 | -10/Mines | Learned location of Storage (-9) 1485 | -10/Mines | Build established: Scavenger-Mutant 1542 | -10/Mines | Learned 2 Materials zone layouts 1600 | -10/Mines | YI-UF0 nonchalantly dropped a Grenade Launcher on the ground 1655 | -10/Mines | Discovered new exit (range 5) 1856 | -10/Mines | Discovered new exit (range 3) 1860 | -10/Mines | Entered Subcaves 2071 | -10/Subcaves | Shifting Twisted Machinery released Mak. System Restoration Module 2095 | -10/Subcaves | Shifting Twisted Machinery released Barrage Gun 2107 | -10/Subcaves | A swath of the cavern ceiling suddenly collapsed 2269 | -10/Subcaves | Build established: Mutant 2441 | -10/Subcaves | Core integrity fell below 50% 2444 | -10/Subcaves | Ambushed by Subdweller buried in earth 2449 | -10/Subcaves | Core integrity fell below 20% 2475 | -10/Subcaves | Lost 8 parts (1p3n2u2w) 2676 | -10/Subcaves | Destroyed by MR-8PT(R) with Subdweller Machine Gun Last Messages --------------- 02627_ Acquired Scrap Shield Fragment. 02629_ Dropped Scrap Shield Fragment. 02629_ Acquired Scrap Shield Fragment. 02634_ Searching scrap... 02634_ Found Mak. System Shield. 02634_ Found Sub. Machine Gun. 02634_ Found 28 Matter. 02635_ Acquired 28 matter. 02635_ Searching scrap... 02635_ Found Sub. Laser. 02635_ Found Battle Cannon. 02635_ Found 36 Matter. 02636_ Acquired 36 matter. 02639_ Dropped Riot Gun. 02640_ Acquired Battle Cannon. 02644_ Dropped Disposable Heat Sink. 02645_ Acquired Mak. System Shield. 02650_ Dropped Disposable Heat Sink. 02650_ Acquired Sub. Machine Gun. 02668_ Lgt. Ion Engine destroyed. Map ----- +----------------------------------------------------+ | ?????????????????????????????????????????????????? | | ?????????????????????????????????????????????????? | | ?????????????????????????????????????????????????? | | ?????????????????????????????????????????????????? | | ?????????????????????????????????????????????????? | | ?????????????????????????????????????????????????? | | ?????????????????????????????????????????????????? | | ?????????????????????????????????????????????????? | | ?????????????????????????????????????????????????? | | ?????????????????????????????????????????????????? | | ?????????????????????????????????????????????????? | | ?????????????????????????????????????????????????? | | ?????????????????????????? ??????????????????????? | | ?????????????????????????? ????? ??????????????? | | ????????????????????????? ""?? ???????????????? | | ???????????????????????? ""#? ????????????????? | | ???????????????????????? ## ????????????????? | | ???????????????????????? R ?????????????????? | | ????????????????????????? R ??????????????????? | | ?????????????????????????? R#??????????????????? | | ??????????????????????????# ##?????????????????? | | ???????????????????###????# ;#?????????????????? | | ????????????????#### ##### ##????????????????? | | ??????????????### #????????????????? | | ??????????????# #######?????##????? | | ??????????????????# @ # ## #??? #????? | | ??????????????????# # #??? #????? | | ?????????????????# #### ! ##?# ##???? | | ????????????????# ????## # #? #???? | | ???????????????????????# ### #? #???? | | ???????????????????????# ;#?## ## #???? | | ?????????????###???????##;; ;##### #????? | | ????????????## ####????#;; ;& ##" ##????? | | ???????????## ##??##; ;! # ##?????? | | ???????????# ####" ;;;[##"#" #??????? | | ???????????# ;### !### ##??????? | | ????????????# ##?#<[## ###???????? | | ????????????## #??#### #?????????? | | ?????????????#### #?????# ##????????? | | ????????????????# #????### ######?### | | ????????????????## ## ##??????## # ### | | ?????????????????##########????????### ## | | ?????????????????????????????????????## ####### % | | ??????????????????????????????????????###?????#### | | ?????????????????????????????????????????????????? | | ?????????????????????????????????????????????????? | | ?????????????????????????????????????????????????? | | ?????????????????????????????????????????????????? | | ?????????????????????????????????????????????????? | | ?????????????????????????????????????????????????? | +----------------------------------------------------+ Best States ------------- Heat Dissipation 25 Energy Generation 10 Energy Capacity 250 Matter Stores 300 Matter Capacity 300 Sight Range 16 Robot Scan Range 14 Terrain Scan Range 16 Terrain Scan Density 10 Armor Coverage 150 Evasion (%) 44 Targeting Accuracy 6 Item Schematics ----------------- None Robot Schematics ------------------ None Fabricated ------------ Nothing Alien Tech Used ----------------- None Achievements -------------- None Challenges ------------ None Game ------ Seed ResetSpikedFacilitator Manual? 0 Play Time 00:33:25 Cumulative 39.2 hours Start 2024.04.11 @ 20:34:34 End 2024.04.11 @ 21:06:51 Sessions 1 Manual Loads 0 Difficulty Rogue Special Mode None Game No. 39 Rogue 39 Adventurer 0 Explorer 0 Win Type - Total 0 Types 0/0/0/0/0/0/0/0/0 Lore% 16 Gallery% 33 Achievement% 25 Wizard Run 0 Options --------- Layout 1 ASCII 0 Keyboard 1 Movement Vi Keybinds 0 Fullscreen 1 Font 24/Smallcaps Map View 50x35 Zoom Use 0% Tactical HUD 1 Map Filters NONE Filters NONE Steam 1 RUN: b9253c6b-9d8c-4d31-8810-d11d5f91a1ca